[Event "XII Closed IM BCC 2021"]
[Site "Barcelona"]
[Date "2021.03.16"]
[Round "2.2"]
[White "Hernandez, Cristian Andres"]
[Black "Serra Canals, Oriol"]
[Result "1/2-1/2"]
[ECO "A40"]
[WhiteElo "2355"]
[BlackElo "2220"]
[Annotator "NA"]
[PlyCount "64"]
[EventDate "2021.03.15"]
[EventType "tourn"]
[EventCountry "ESP"]
[SourceTitle "playchess.com"]
[Source "ChessBase"]
[SourceQuality "1"]
[TimeControl "5400+30"]

1. d4 {[%emt 0:00:00]} e6 {[%emt 0:00:00]} 2. Nf3 {[%emt 0:00:00]} d5 {[%emt 0:00:06]} 3. Bf4 {[%emt 0:00:38]} Nf6 {[%emt 0:01:39]} 4. e3 {[%emt 0:00:16]} Be7 {[%emt 0:04:16]} 5. h3 {[%emt 0:02:39]} b6 {[%emt 0:00:50]} 6. Nbd2 {[%emt 0:00:21]} O-O {[%emt 0:02:58]} 7. c3 {[%emt 0:02:06]} c5 {[%emt 0:03:12]} 8. Ne5 $11 {[%emt 0:02:23]} Bb7 {[%emt 0:03:06]} 9. Be2 {[%emt 0:07:55]} Ne4 {[%emt 0:06:20]} 10. Nxe4 {[%emt 0:00:43]} dxe4 {[%emt 0:00:03]} 11. O-O {[%emt 0:09:09]} Qc8 {[%emt 0:07:35]} 12. a4 {[%emt 0:04:57]} f6 {[%emt 0:08:25]} 13. Nc4 {[%emt 0:00:36]} Rd8 {[%emt 0:01:33]} 14. Qb1 {[%emt 0:10:43]} Bd5 {[%emt 0:07:25]} 15. Rc1 {[%emt 0:04:06]} Qb7 {[%emt 0:01:00]} 16. b4 {[%emt 0:11:29]} cxb4 {[%emt 0:19:38]} 17. cxb4 {[%emt 0:00:05]} Nc6 {[%emt 0:00:05]} 18. b5 {[%emt 0:00:06]} Nb4 {[%emt 0:00:44]} 19. Nd6 {[%emt 0:01:08]} Rxd6 {[%emt 0:00:07]} 20. Qxb4 {[%emt 0:00:46]} Rdd8 {[%emt 0:00:12]} 21. Qd2 {[%emt 0:07:15]} Rdc8 {[%emt 0:01:59]} 22. a5 {[%emt 0:00:11]} Rxc1+ {[%emt 0:00:45]} 23. Rxc1 {[%emt 0:00:10]} Rc8 {[%emt 0:01:44]} 24. a6 {[%emt 0:01:27]} Qd7 {[%emt 0:00:02]} 25. Rc3 {[%emt 0:07:05]} Kf7 {[%emt 0:00:18]} 26. Qc2 {[%emt 0:00:20]} Rxc3 {[%emt 0:00:54]} 27. Qxc3 {[%emt 0:00:06]} Ke8 {[%emt 0:02:06]} 28. h4 {[%emt 0:06:49]} Kd8 {[%emt 0:00:18]} 29. Kf1 {[%emt 0:14:16]} Qc8 {[%emt 0:00:14]} 30. Qxc8+ {[%emt 0:00:08]} Kxc8 {[%emt 0:00:05]} 31. Ke1 {[%emt 0:04:57]} Kd7 32. Kd2 Bd6 1/2-1/2

[Event "XII Closed IM BCC 2021"]
[Site "Barcelona"]
[Date "2021.03.17"]
[Round "3.1"]
[White "Gines Esteo, Pedro Antonio"]
[Black "Girel, Joseph"]
[Result "1-0"]
[ECO "E46"]
[WhiteElo "2443"]
[BlackElo "2310"]
[Annotator "NA RC"]
[PlyCount "85"]
[EventDate "2021.03.15"]
[EventType "tourn"]
[EventCountry "ESP"]
[SourceTitle "playchess.com"]
[Source "ChessBase"]
[SourceQuality "1"]
[TimeControl "5400+30"]

1. d4 Nf6 2. c4 e6 3. Nc3 Bb4 4. e3 O-O 5. Bd2 b6 6. Bd3 Bb7 7. Nf3 d6 8. O-O Nbd7 9. a3 Bxc3 10. Bxc3 Ne4 11. Be1 f5 12. Nd2 Qg5 13. f4 Qe7 14. Nxe4 fxe4 15. Bc2 d5 16. cxd5 exd5 17. Qe2 a5 18. Ba4 c5 19. Bc3 Ba6 20. Bb5 Bxb5 21. Qxb5 Qe6 22. dxc5 Nxc5 23. b4 Nd3 24. bxa5 bxa5 25. Qb7 Qf7 26. Rfb1 a4 27. Bd4 Rac8 28. h3 h6 29. Qa6 Ra8 30. Qb6 Rac8 31. Rb5 Rfd8 32. Rab1 Rd7 33. Qa6 Rdc7 34. Rb8 Rxb8 35. Rxb8+ Kh7 36. Qd6 Rc1+ 37. Kh2 Ne1 38. Rf8 Qb7 39. Qe6 Rc6 40. Qe8 Nf3+ 41. gxf3 Rc2+ 42. Kg3 Qb1 43. Rh8# 1-0

[Event "XII Closed IM BCC 2021"]
[Site "Barcelona"]
[Date "2021.03.17"]
[Round "3.5"]
[White "Benedetti, Julio"]
[Black "Hernandez, Cristian Andres"]
[Result "1/2-1/2"]
[ECO "B33"]
[WhiteElo "2282"]
[BlackElo "2355"]
[Annotator "NA"]
[PlyCount "44"]
[EventDate "2021.03.15"]
[EventType "tourn"]
[EventCountry "ESP"]
[SourceTitle "playchess.com"]
[Source "ChessBase"]
[SourceQuality "1"]
[TimeControl "5400+30"]

1. e4 {[%emt 0:09:18]} c5 {[%emt 0:00:00]} 2. Nc3 {[%emt 0:00:15]} Nc6 {[%emt 0:00:00]} 3. Nge2 {[%emt 0:00:29]} e6 {[%emt 0:02:27]} 4. d4 {[%emt 0:01:22]} cxd4 {[%emt 0:00:06]} 5. Nxd4 {[%emt 0:00:05]} Nf6 {[%emt 0:00:26]} 6. Ndb5 {[%emt 0:00:56]} d6 {[%emt 0:00:07]} 7. Bf4 {[%emt 0:00:27]} e5 {[%emt 0:00:06]} 8. Bg5 {[%emt 0:00:05]} a6 {[%emt 0:00:03]} 9. Na3 {[%emt 0:00:08]} b5 {[%emt 0:00:15]} 10. Nd5 {[%emt 0:00:59]} Be7 {[%emt 0:00:07]} 11. Bxf6 {[%emt 0:00:22]} Bxf6 {[%emt 0:00:05]} 12. c3 {[%emt 0:00:39]} Bg5 {[%emt 0:00:37]} 13. Nc2 {[%emt 0:00:52]} Rb8 {[%emt 0:04:32]} 14. Ncb4 {[%emt 0:04:33]} Nxb4 {[%emt 0:02:38]} 15. Nxb4 {[%emt 0:00:13]} Bb7 {[%emt 0:07:10]} 16. Bd3 {[%emt 0:02:45]} O-O {[%emt 0:02:50]} 17. h4 {[%emt 0:05:24]} Bh6 {[%emt 0:10:47]} 18. Bc2 {[%emt 0:03:57]} f5 {[%emt 0:08:24]} 19. Nd5 {[%emt 0:02:26]} fxe4 {[%emt 0:14:37]} 20. Bxe4 Bxd5 21. Qxd5+ Kh8 22. g3 Qb6 1/2-1/2

[Event "XII Closed IM BCC 2021"]
[Site "Barcelona"]
[Date "2021.03.19"]
[Round "5.1"]
[White "Alvarez Albiol, Victor"]
[Black "Girel, Joseph"]
[Result "0-1"]
[ECO "C54"]
[WhiteElo "2246"]
[BlackElo "2310"]
[Annotator "NA"]
[PlyCount "93"]
[EventDate "2021.03.15"]
[EventType "tourn"]
[EventCountry "ESP"]
[SourceTitle "playchess.com"]
[Source "ChessBase"]
[SourceQuality "1"]
[TimeControl "5400+30"]

1. e4 e5 2. Nf3 Nc6 3. Bc4 Bc5 4. c3 Nf6 5. d3 a6 6. Bb3 Ba7 7. Nbd2 d6 8. Nf1 Ne7 9. Ng3 Ng6 10. O-O O-O 11. h3 c6 12. Be3 Bxe3 13. fxe3 d5 14. exd5 cxd5 15. d4 e4 16. Ne5 Qd6 17. Nxg6 hxg6 18. Qe1 b5 19. Ne2 a5 20. a3 Ba6 21. Qg3 Rfd8 22. Rf2 Qxg3 23. Nxg3 Kf8 24. Nf1 Ke7 25. Nd2 a4 26. Ba2 Bc8 27. Nf1 Be6 28. Ng3 Ne8 29. Ne2 g5 30. Raf1 Nd6 31. Ng3 g6 32. Rf6 Rh8 33. R6f2 Rh4 34. Ne2 Nf5 35. Rxf5 gxf5 36. Ng3 f4 37. exf4 gxf4 38. Bxd5 Rg8 39. Bxe6 Rxg3 40. Bg4 f3 41. Re1 Rxg2+ 42. Kf1 Rgxg4 43. hxg4 Rh1+ 44. Kf2 Rxe1 45. Kxe1 e3 46. Kf1 Kd6 47. g5 0-1

[Event "XII Closed IM BCC 2021"]
[Site "Barcelona"]
[Date "2021.03.19"]
[Round "5.2"]
[White "Martin Barcelo, Carles"]
[Black "Gines Esteo, Pedro Antonio"]
[Result "0-1"]
[ECO "B13"]
[WhiteElo "2258"]
[BlackElo "2443"]
[Annotator "NA"]
[PlyCount "86"]
[EventDate "2021.03.15"]
[EventType "tourn"]
[EventCountry "ESP"]
[SourceTitle "playchess.com"]
[Source "ChessBase"]
[SourceQuality "1"]
[TimeControl "5400+30"]

1. e4 {[%emt 0:06:10]} c6 {[%emt 0:01:00]} 2. d4 {[%emt 0:00:09]} d5 {[%emt 0:00:09]} 3. exd5 {[%emt 0:00:07]} cxd5 {[%emt 0:00:08]} 4. Bd3 {[%emt 0:00:05]} Nc6 {[%emt 0:00:07]} 5. c3 {[%emt 0:00:04]} Nf6 {[%emt 0:00:53]} 6. Bf4 {[%emt 0:00:17]} Bg4 {[%emt 0:00:06]} 7. Qb3 {[%emt 0:00:05]} Qd7 {[%emt 0:00:21]} 8. Nd2 {[%emt 0:00:39]} e6 {[%emt 0:00:07]} 9. Ngf3 {[%emt 0:00:13]} Bd6 {[%emt 0:00:32]} 10. Bxd6 {[%emt 0:01:25]} Qxd6 {[%emt 0:00:08]} 11. O-O {[%emt 0:00:13]} O-O {[%emt 0:00:10]} 12. Rae1 {[%emt 0:02:17]} Nd7 {[%emt 0:12:01]} 13. Re3 {[%emt 0:10:31]} Bh5 {[%emt 0:02:59]} 14. Rfe1 {[%emt 0:02:42]} Rfc8 {[%emt 0:22:22]} 15. Ne5 Ncxe5 {[%emt 0:11:47]} 16. dxe5 {[%emt 0:11:47]} Qb6 {[%emt 0:11:22]} 17. Qc2 {[%emt 0:32:45]} Nf8 {[%emt 0:02:29]} 18. Nb3 {[%emt 0:03:36]} Bg6 {[%emt 0:01:53]} 19. Qd2 {[%emt 0:05:04]} Bxd3 {[%emt 0:08:06]} 20. Rxd3 {[%emt 0:00:09]} Qa6 {[%emt 0:00:04]} 21. a3 {[%emt 0:01:02]} b5 {[%emt 0:01:57]} 22. h4 {[%emt 0:07:59]} Qb6 {[%emt 0:01:59]} 23. h5 {[%emt 0:13:05]} a5 {[%emt 0:10:09]} 24. Qg5 {[%emt 0:00:57]} Qd8 {[%emt 0:01:32]} 25. Qf4 {[%emt 0:00:35]} Qe7 {[%emt 0:04:10]} 26. Ree3 {[%emt 0:00:19]} Rc4 {[%emt 0:00:48]} 27. Rd4 {[%emt 0:00:38]} Qc7 {[%emt 0:02:04]} 28. Qg5 {[%emt 0:00:32]} b4 {[%emt 0:03:02]} 29. h6 {[%emt 0:00:14]} Ng6 {[%emt 0:00:28]} 30. cxb4 {[%emt 0:00:44]} axb4 {[%emt 0:00:18]} 31. axb4 {[%emt 0:00:28]} f6 {[%emt 0:01:33]} 32. Qg4 {[%emt 0:00:23]} f5 {[%emt 0:00:10]} 33. Qh5 {[%emt 0:00:41]} Rxd4 {[%emt 0:00:43]} 34. Nxd4 {[%emt 0:00:05]} Qc1+ {[%emt 0:00:17]} 35. Kh2 {[%emt 0:00:06]} Ra1 {[%emt 0:00:20]} 36. Qg5 {[%emt 0:00:35]} Qh1+ {[%emt 0:00:59]} 37. Kg3 {[%emt 0:00:01]} f4+ {[%emt 0:00:06]} 38. Kf3 {[%emt 0:00:14]} fxe3 {[%emt 0:00:57]} 39. Qd8+ {[%emt 0:01:28]} Nf8 {[%emt 0:00:05]} 40. hxg7 {[%emt 0:00:40]} Qh5+ {[%emt 0:00:41]} 41. g4 {[%emt 0:00:23]} Qh3+ {[%emt 0:00:51]} 42. Kf4 {[%emt 0:00:38]} Qh2+ {[%emt 0:00:29]} 43. Kg5 {[%emt 0:00:35]} h6+ {[%emt 0:00:30]} 0-1

[Event "XII Closed IM BCC 2021"]
[Site "Barcelona"]
[Date "2021.03.19"]
[Round "5.3"]
[White "Serra Canals, Oriol"]
[Black "Garcia Ramos, Daniel"]
[Result "0-1"]
[ECO "D43"]
[WhiteElo "2220"]
[BlackElo "2412"]
[Annotator "ChessBase"]
[PlyCount "70"]
[EventDate "2021.03.15"]
[EventType "tourn"]
[EventCountry "ESP"]
[SourceTitle "playchess.com"]
[Source "ChessBase"]
[SourceQuality "1"]
[TimeControl "5400+30"]

1. d4 {[%emt 0:00:00]} d5 {[%emt 0:00:00]} 2. c4 {[%emt 0:00:55]} c6 {[%emt 0:00:00]} 3. Nc3 {[%emt 0:00:10]} Nf6 {[%emt 0:00:00]} 4. Nf3 {[%emt 0:00:06]} e6 {[%emt 0:00:04]} 5. Qd3 {[%emt 0:01:39]} dxc4 {[%emt 0:03:10]} 6. Qxc4 {[%emt 0:00:07]} b5 {[%emt 0:00:07]} 7. Qd3 {[%emt 0:00:06]} Bb7 {[%emt 0:00:30]} 8. g3 {[%emt 0:05:24]} Nbd7 {[%emt 0:00:51]} 9. Bg2 {[%emt 0:00:59]} Be7 {[%emt 0:04:29]} 10. O-O {[%emt 0:01:13]} O-O {[%emt 0:01:01]} 11. Rd1 {[%emt 0:00:06]} b4 {[%emt 0:23:01]} 12. Ne4 {[%emt 0:05:12]} Qb6 {[%emt 0:03:58]} 13. Nxf6+ {[%emt 0:06:45]} Bxf6 {[%emt 0:14:28]} 14. Ng5 {[%emt 0:04:00]} g6 {[%emt 0:00:53]} 15. Ne4 {[%emt 0:00:58]} Be7 {[%emt 0:07:14]} 16. Be3 {[%emt 0:01:21]} Qa5 {[%emt 0:03:22]} 17. Nd2 {[%emt 0:04:30]} Rad8 {[%emt 0:05:47]} 18. Nb3 {[%emt 0:05:59]} Qa4 {[%emt 0:06:34]} 19. Qe4 {[%emt 0:05:31]} Ba8 {[%emt 0:03:12]} 20. Qf4 {[%emt 0:00:45]} Qb5 {[%emt 0:01:20]} 21. Qc7 {[%emt 0:04:00]} Qxe2 {[%emt 0:02:26]} 22. Na5 {[%emt 0:11:53]} Bf6 {[%emt 0:02:24]} 23. Qxa7 {[%emt 0:00:49]} Qb5 {[%emt 0:09:20]} 24. Bf4 {[%emt 0:11:36]} e5 {[%emt 0:05:02]} 25. Bh6 {[%emt 0:00:02]} Rfe8 {[%emt 0:00:58]} 26. Rac1 {[%emt 0:05:37]} e4 {[%emt 0:00:05]} 27. Bf4 {[%emt 0:05:37]} Nf8 {[%emt 0:02:22]} 28. Bf1 {[%emt 0:05:24]} Qh5 {[%emt 0:00:12]} 29. Bc4 {[%emt 0:00:01]} Rd7 {[%emt 0:00:33]} 30. Qb6 {[%emt 0:00:42]} Bd8 {[%emt 0:00:12]} 31. Qxb4 {[%emt 0:06:18]} Qxa5 {[%emt 0:00:07]} 32. Qb8 {[%emt 0:00:06]} Qa7 {[%emt 0:00:52]} 33. Qc8 {[%emt 0:01:04]} Bb7 {[%emt 0:00:30]} 34. Qb8 {[%emt 0:03:28]} Qxb8 {[%emt 0:00:10]} 35. Bxb8 {[%emt 0:00:01]} Bg5 {[%emt 0:00:09]} 0-1

[Event "XII Closed IM BCC 2021"]
[Site "Barcelona"]
[Date "2021.03.19"]
[Round "5.4"]
[White "Benedetti, Julio"]
[Black "Boyer, Mahel"]
[Result "0-1"]
[ECO "C12"]
[WhiteElo "2282"]
[BlackElo "2333"]
[Annotator "NA"]
[PlyCount "126"]
[EventDate "2021.03.15"]
[EventType "tourn"]
[EventCountry "ESP"]
[SourceTitle "playchess.com"]
[Source "ChessBase"]
[SourceQuality "1"]
[TimeControl "5400+30"]

1. e4 e6 2. d4 d5 3. Nc3 Nf6 4. Bg5 Bb4 5. e5 h6 6. Bc1 Ne4 7. Qg4 g6 8. Bd3 c5 9. Bxe4 dxe4 10. Qxe4 Qxd4 11. Qxd4 cxd4 12. a3 Ba5 13. b4 dxc3 14. bxa5 Nc6 15. Ne2 Nxe5 16. O-O Bd7 17. Rb1 Bc6 18. Nd4 O-O-O 19. Bf4 Rd5 20. a6 Rhd8 21. Rb3 Rxd4 22. Bxe5 Rc4 23. axb7+ Bxb7 24. Rxc3 Rxc3 25. Bxc3 Rd5 26. f3 Rc5 27. Bd4 Ra5 28. Ra1 Ra4 29. Be3 g5 30. Kf2 a6 31. h3 e5 32. Rd1 Rxa3 33. Rd6 Rc3 34. Rxh6 Rxc2+ 35. Kg3 a5 36. Bxg5 a4 37. Bf6 e4 38. Rh4 a3 39. fxe4 Kd7 40. Kf3 a2 41. Rh5 Ke6 42. Bd4 Rc4 43. Re5+ Kd6 44. Bb2 Rb4 45. Ba1 Rb1 46. Bd4 a1=Q 47. Bxa1 Rxa1 48. Re8 f5 49. Kf4 Rf1+ 50. Ke3 fxe4 51. Rb8 Bd5 52. Rd8+ Ke5 53. Rh8 Re1+ 54. Kf2 Ra1 55. g4 Kd4 56. Re8 Ra2+ 57. Kg3 e3 58. g5 Rg2+ 59. Kf4 Rf2+ 60. Kg3 Rg2+ 61. Kf4 e2 62. g6 Rf2+ 63. Kg4 Be4 0-1

[Event "XII Closed IM BCC 2021"]
[Site "Barcelona"]
[Date "2021.03.19"]
[Round "5.5"]
[White "Hernandez, Cristian Andres"]
[Black "Alcala Gonzalez, Cesar"]
[Result "1-0"]
[ECO "D10"]
[WhiteElo "2355"]
[BlackElo "2110"]
[Annotator "NA"]
[PlyCount "119"]
[EventDate "2021.03.15"]
[EventType "tourn"]
[EventCountry "ESP"]
[SourceTitle "playchess.com"]
[Source "ChessBase"]
[SourceQuality "1"]
[TimeControl "5400+30"]

1. d4 {[%emt 0:00:00]} d5 {[%emt 0:00:00]} 2. c4 {[%emt 0:00:00]} c6 {[%emt 0:00:00]} 3. Nc3 {[%emt 0:00:10]} Nf6 {[%emt 0:00:00]} 4. cxd5 {[%emt 0:00:45]} cxd5 {[%emt 0:00:00]} 5. Bf4 {[%emt 0:00:08]} Nc6 {[%emt 0:00:35]} 6. e3 {[%emt 0:00:09]} Bf5 {[%emt 0:00:12]} 7. Rc1 {[%emt 0:04:39]} e6 {[%emt 0:01:45]} 8. Qb3 {[%emt 0:03:35]} Qb6 {[%emt 0:07:43]} 9. Qxb6 {[%emt 0:01:56]} axb6 {[%emt 0:00:01]} 10. a3 {[%emt 0:00:14]} Be7 {[%emt 0:01:48]} 11. Nf3 {[%emt 0:05:13]} O-O {[%emt 0:01:05]} 12. Be2 {[%emt 0:01:51]} Rac8 {[%emt 0:13:36]} 13. Nd2 {[%emt 0:03:31]} Nd7 {[%emt 0:06:06]} 14. O-O {[%emt 0:10:19]} f6 {[%emt 0:05:21]} 15. Bg3 {[%emt 0:00:27]} Bg6 {[%emt 0:06:52]} 16. Bg4 {[%emt 0:01:41]} f5 {[%emt 0:02:19]} 17. Be2 {[%emt 0:05:10]} Bf7 {[%emt 0:13:30]} 18. Nb5 {[%emt 0:00:53]} e5 {[%emt 0:01:28]} 19. dxe5 {[%emt 0:10:30]} Ndxe5 {[%emt 0:00:22]} 20. Rfd1 {[%emt 0:22:11]} Rfd8 {[%emt 0:07:26]} 21. Nf3 {[%emt 0:01:07]} Bf6 {[%emt 0:13:18]} 22. Nd6 {[%emt 0:06:18]} Rxd6 {[%emt 0:01:34]} 23. Bxe5 {[%emt 0:00:05]} Bxe5 {[%emt 0:00:18]} 24. Nxe5 {[%emt 0:00:04]} Rcd8 {[%emt 0:00:24]} 25. Nf3 {[%emt 0:00:58]} g6 {[%emt 0:02:41]} 26. Nd4 {[%emt 0:02:28]} Nxd4 {[%emt 0:00:57]} 27. Rxd4 {[%emt 0:00:30]} Rc6 {[%emt 0:00:06]} 28. Rcd1 {[%emt 0:00:40]} Rc2 {[%emt 0:00:52]} 29. R4d2 {[%emt 0:00:08]} Rdc8 {[%emt 0:00:51]} 30. g3 {[%emt 0:01:49]} Kg7 {[%emt 0:01:04]} 31. Kf1 {[%emt 0:05:58]} Rxd2 {[%emt 0:00:46]} 32. Rxd2 {[%emt 0:00:06]} Rc1+ {[%emt 0:00:39]} 33. Kg2 {[%emt 0:00:37]} Kf6 {[%emt 0:00:53]} 34. Bf3 {[%emt 0:00:41]} Ke5 {[%emt 0:01:05]} 35. Rd4 {[%emt 0:00:15]} Kd6 {[%emt 0:01:54]} 36. Rd2 {[%emt 0:03:23]} Be6 {[%emt 0:02:17]} 37. h4 {[%emt 0:00:11]} Kc5 {[%emt 0:00:48]} 38. h5 {[%emt 0:00:27]} g5 {[%emt 0:00:54]} 39. h6 {[%emt 0:00:53]} Kd6 {[%emt 0:00:32]} 40. g4 {[%emt 0:03:08]} fxg4 {[%emt 0:03:07]} 41. Bxd5 {[%emt 0:00:07]} Ke5 {[%emt 0:00:45]} 42. Bxe6 {[%emt 0:01:46]} Kxe6 {[%emt 0:00:01]} 43. Rd4 {[%emt 0:00:06]} Kf5 {[%emt 0:01:15]} 44. Rd7 {[%emt 0:00:10]} Rc2 {[%emt 0:01:10]} 45. b4 {[%emt 0:00:43]} Kg6 {[%emt 0:00:24]} 46. Rd6+ {[%emt 0:02:21]} Kh5 {[%emt 0:00:31]} 47. Kg3 {[%emt 0:00:31]} Ra2 {[%emt 0:01:24]} 48. Rxb6 {[%emt 0:00:17]} Rxa3 {[%emt 0:00:05]} 49. Rxb7 {[%emt 0:00:12]} Rb3 {[%emt 0:00:34]} 50. Rxh7 {[%emt 0:01:31]} Rxb4 {[%emt 0:00:11]} 51. Rh8 {[%emt 0:00:13]} Kg6 {[%emt 0:00:26]} 52. h7 {[%emt 0:00:20]} Rb5 {[%emt 0:01:51]} 53. Kxg4 {[%emt 0:00:07]} Rb4+ {[%emt 0:00:06]} 54. Kg3 {[%emt 0:01:24]} Rb5 {[%emt 0:00:08]} 55. e4 {[%emt 0:00:52]} Kg7 {[%emt 0:01:31]} 56. Rf8 {[%emt 0:01:08]} Kxh7 {[%emt 0:00:19]} 57. Rf5 {[%emt 0:00:08]} Rb3+ {[%emt 0:00:50]} 58. Kg4 {[%emt 0:00:25]} Kh6 {[%emt 0:00:11]} 59. Rxg5 {[%emt 0:00:35]} Rb2 {[%emt 0:00:15]} 60. Rf5 {[%emt 0:00:13]} 1-0

[Event "XII Closed IM BCC 2021"]
[Site "Barcelona"]
[Date "2021.03.20"]
[Round "6.4"]
[White "Gines Esteo, Pedro Antonio"]
[Black "Serra Canals, Oriol"]
[Result "1-0"]
[ECO "D31"]
[WhiteElo "2443"]
[BlackElo "2220"]
[Annotator "NA"]
[PlyCount "77"]
[EventDate "2021.03.15"]
[EventType "tourn"]
[EventCountry "ESP"]
[SourceTitle "playchess.com"]
[Source "ChessBase"]
[SourceQuality "1"]
[TimeControl "5400+30"]

1. d4 e6 2. c4 d5 3. Nc3 Be7 4. cxd5 exd5 5. Bf4 c6 6. e3 Bd6 7. Bxd6 Qxd6 8. Bd3 Ne7 9. Qb3 Nd7 10. Nf3 Nb6 11. a4 Bf5 12. Bxf5 Nxf5 13. a5 Nc4 14. e4 dxe4 15. Nxe4 Qe7 16. O-O Qxe4 17. Rae1 Nce3 18. fxe3 O-O 19. Qxb7 Rab8 20. Qxa7 Rxb2 21. Rf2 Rxf2 22. Kxf2 Re8 23. Ne5 Nd6 24. Qd7 Qd5 25. Kg1 Qxa5 26. Rf1 Qa3 27. Nc4 Qd3 28. Nxd6 Qxe3+ 29. Kh1 Rf8 30. Qg4 Qd3 31. Qf4 f6 32. Qf5 Qxf5 33. Nxf5 Kf7 34. Re1 Rd8 35. g4 g6 36. Re7+ Kf8 37. Rxh7 Kg8 38. Rg7+ Kh8 39. Rxg6 1-0

[Event "XII Closed IM BCC 2021"]
[Site "Barcelona"]
[Date "2021.03.21"]
[Round "7.2"]
[White "Serra Canals, Oriol"]
[Black "Alvarez Albiol, Victor"]
[Result "1/2-1/2"]
[ECO "E66"]
[WhiteElo "2220"]
[BlackElo "2246"]
[Annotator "ChessBase"]
[PlyCount "83"]
[EventDate "2021.03.15"]
[EventType "tourn"]
[EventCountry "ESP"]
[SourceTitle "playchess.com"]
[Source "ChessBase"]
[SourceQuality "1"]
[TimeControl "5400+30"]

1. Nf3 {[%emt 0:00:00]} Nf6 {[%emt 0:00:00]} 2. g3 {[%emt 0:00:08]} g6 {[%emt 0:00:00]} 3. Bg2 {[%emt 0:00:18]} Bg7 {[%emt 0:00:00]} 4. d4 {[%emt 0:01:17]} O-O {[%emt 0:00:10]} 5. O-O {[%emt 0:00:04]} d6 {[%emt 0:00:06]} 6. c4 {[%emt 0:00:49]} c5 {[%emt 0:00:06]} 7. Nc3 {[%emt 0:03:57]} Nc6 {[%emt 0:00:18]} 8. d5 {[%emt 0:00:56]} Na5 {[%emt 0:00:16]} 9. Qd3 {[%emt 0:02:09]} a6 {[%emt 0:01:32]} 10. h3 {[%emt 0:02:11]} Rb8 {[%emt 0:01:16]} 11. Rb1 {[%emt 0:06:20]} b5 {[%emt 0:00:53]} 12. cxb5 {[%emt 0:00:08]} axb5 {[%emt 0:00:05]} 13. b4 {[%emt 0:00:46]} c4 {[%emt 0:13:28]} 14. Qc2 {[%emt 0:01:31]} Nb7 {[%emt 0:02:38]} 15. Nd4 {[%emt 0:04:39]} Nxd5 {[%emt 0:07:15]} 16. Nc6 {[%emt 0:01:50]} Nxc3 {[%emt 0:00:20]} 17. Nxd8 {[%emt 0:00:06]} Nxd8 {[%emt 0:05:03]} 18. Bb2 {[%emt 0:12:17]} Nxb1 {[%emt 0:03:01]} 19. Bxg7 {[%emt 0:00:06]} Kxg7 {[%emt 0:00:26]} 20. Rxb1 {[%emt 0:00:06]} Bb7 {[%emt 0:11:39]} 21. Bxb7 {[%emt 0:06:58]} Rxb7 {[%emt 0:00:36]} 22. a4 {[%emt 0:00:19]} bxa4 {[%emt 0:10:44]} 23. Qxa4 {[%emt 0:00:06]} Ne6 {[%emt 0:01:06]} 24. Qa6 {[%emt 0:11:37]} Rc7 {[%emt 0:04:35]} 25. b5 {[%emt 0:09:06]} Rb8 {[%emt 0:07:05]} 26. Kg2 {[%emt 0:03:25]} c3 {[%emt 0:06:56]} 27. Qa1 {[%emt 0:01:45]} Kg8 {[%emt 0:03:07]} 28. b6 {[%emt 0:10:07]} c2 {[%emt 0:01:18]} 29. bxc7 {[%emt 0:00:48]} cxb1=Q {[%emt 0:00:20]} 30. Qxb1 {[%emt 0:00:27]} Rxb1 {[%emt 0:00:12]} 31. c8=Q+ {[%emt 0:00:10]} Kg7 {[%emt 0:00:24]} 32. h4 {[%emt 0:00:36]} h5 {[%emt 0:00:29]} 33. f3 {[%emt 0:01:39]} Rb5 {[%emt 0:01:38]} 34. Kf2 {[%emt 0:01:40]} Re5 {[%emt 0:02:17]} 35. f4 {[%emt 0:00:23]} Re4 {[%emt 0:01:16]} 36. Kf3 {[%emt 0:03:43]} f5 {[%emt 0:01:47]} 37. e3 {[%emt 0:01:05]} Nf8 {[%emt 0:02:02]} 38. Qc3+ {[%emt 0:01:59]} Kg8 {[%emt 0:00:19]} 39. Qb3+ {[%emt 0:00:09]} Kg7 {[%emt 0:00:12]} 40. Ke2 {[%emt 0:00:28]} Nh7 {[%emt 0:01:01]} 41. Kd2 {[%emt 0:03:14]} Nf6 {[%emt 0:00:16]} 42. Qb2 {[%emt 0:01:26]} 1/2-1/2

[Event "XII Closed IM BCC 2021"]
[Site "Barcelona"]
[Date "2021.03.21"]
[Round "7.3"]
[White "Benedetti, Julio"]
[Black "Gines Esteo, Pedro Antonio"]
[Result "0-1"]
[ECO "B12"]
[WhiteElo "2282"]
[BlackElo "2443"]
[Annotator "ChessBase"]
[PlyCount "74"]
[EventDate "2021.03.15"]
[EventType "tourn"]
[EventCountry "ESP"]
[SourceTitle "playchess.com"]
[Source "ChessBase"]
[SourceQuality "1"]
[TimeControl "5400+30"]

1. e4 {[%emt 0:12:08]} c6 {[%emt 0:00:00]} 2. d4 {[%emt 0:00:12]} d5 {[%emt 0:00:00]} 3. e5 {[%emt 0:00:16]} Bf5 {[%emt 0:00:00]} 4. Nf3 {[%emt 0:00:18]} e6 {[%emt 0:00:00]} 5. Be2 {[%emt 0:00:20]} Nd7 {[%emt 0:00:59]} 6. O-O {[%emt 0:00:39]} Ne7 {[%emt 0:00:05]} 7. Nbd2 {[%emt 0:00:30]} h6 {[%emt 0:00:07]} 8. Nb3 {[%emt 0:00:28]} g5 {[%emt 0:00:42]} 9. Ne1 {[%emt 0:00:30]} Qc7 {[%emt 0:00:10]} 10. Nd3 {[%emt 0:00:34]} b6 {[%emt 0:05:01]} 11. Be3 {[%emt 0:03:40]} Bg7 {[%emt 0:00:29]} 12. f4 {[%emt 0:01:57]} c5 {[%emt 0:00:07]} 13. dxc5 {[%emt 0:04:03]} gxf4 {[%emt 0:01:04]} 14. cxb6 {[%emt 0:01:03]} axb6 {[%emt 0:00:07]} 15. Bxf4 {[%emt 0:01:22]} Ng6 {[%emt 0:00:17]} 16. Bg3 {[%emt 0:04:28]} Ndxe5 {[%emt 0:19:32]} 17. Rxf5 {[%emt 0:14:22]} exf5 {[%emt 0:02:45]} 18. Nd4 {[%emt 0:00:38]} f4 {[%emt 0:11:00]} 19. Nxf4 {[%emt 0:01:12]} Qc5 {[%emt 0:03:22]} 20. Bb5+ {[%emt 0:04:33]} Kf8 {[%emt 0:02:32]} 21. Bf2 {[%emt 0:11:13]} Nxf4 {[%emt 0:08:40]} 22. Ne6+ {[%emt 0:00:51]} Nxe6 {[%emt 0:00:27]} 23. Bxc5+ {[%emt 0:00:05]} bxc5 {[%emt 0:00:23]} 24. Qxd5 {[%emt 0:00:24]} Rd8 {[%emt 0:00:49]} 25. Qb7 {[%emt 0:01:09]} Bf6 {[%emt 0:04:59]} 26. a4 {[%emt 0:01:46]} Kg7 {[%emt 0:03:43]} 27. c3 {[%emt 0:00:12]} Rd2 {[%emt 0:15:00]} 28. Bf1 {[%emt 0:00:57]} Rhd8 {[%emt 0:04:08]} 29. a5 {[%emt 0:01:35]} R8d7 {[%emt 0:06:11]} 30. Qb5 {[%emt 0:01:28]} R7d5 {[%emt 0:05:00]} 31. a6 {[%emt 0:02:33]} Nf4 {[%emt 0:02:20]} 32. Qb7 {[%emt 0:10:17]} Nh3+ {[%emt 0:01:04]} 33. Kh1 {[%emt 0:00:12]} Nf3 {[%emt 0:01:20]} 34. gxf3 {[%emt 0:02:42]} Nf2+ {[%emt 0:00:08]} 35. Kg1 {[%emt 0:00:12]} Rg5+ {[%emt 0:00:06]} 36. Bg2 {[%emt 0:00:07]} Nh3+ {[%emt 0:00:06]} 37. Kh1 {[%emt 0:01:28]} Rdxg2 {[%emt 0:00:15]} 0-1